bitfinex/quotes_ETHUSD_20250106
["timestamp","ask_amount","ask_price","bid_price","bid_amount"]
[1736127422978,2.48125,3627.2,3626.8,0.06346739]
[1736127423283,2.48125,3627.2,3626.9,0.06345428]
[1736127423492,2.48125,3627.2,3626.7,2.23834773]
[1736127423801,2.48125,3627.2,3626.8,0.06346739]
[1736127424126,1.15459865,3627.3,3626.8,0.34557771]
[1736127424335,1.15459865,3627.3,3626.9,0.06345428]
[1736127424975,1.15459865,3627.3,3626.8,0.34557771]
[1736127425170,2.60505,3627.5,3626.9,1.4984254]
[1736127425436,0.7647,3627.4,3626.9,2.45478882]
[1736127426010,0.7647,3627.4,3626.9,3.21128882]
[1736127426483,0.7647,3627.4,3627.0,0.95636342]
[1736127426708,0.7647,3627.4,3627.1,0.0637538]
[1736127427063,2.48119,3627.3,3627.1,0.0637538]
[1736127428005,2.48119,3627.3,3626.9,0.7565]
[1736127428208,2.48119,3627.3,3627.2,0.06374068]
[1736127428405,2.48119,3627.3,3626.9,0.7565]
[1736127428636,2.48119,3627.3,3627.2,0.06374068]
[1736127428847,2.48119,3627.3,3626.9,0.7565]
[1736127429356,2.48119,3627.3,3627.0,0.06376691]
[1736127430914,0.7647,3627.4,3627.0,0.06376691]
[1736127431119,1.27759865,3627.6,3627.0,0.06376691]
[1736127431383,1.15459865,3627.6,3627.0,0.2611898]
[1736127431690,1.15459865,3627.6,3627.1,0.7708]
[1736127432173,1.27759865,3627.8,3627.2,0.0637457]
[1736127433280,0.123,3627.8,3627.2,0.0637457]
[1736127433769,3.63537865,3627.9,3627.2,0.0637457]
[1736127433920,1.15459865,3627.9,3627.3,0.7708]
[1736127435676,1.15459865,3627.9,3627.4,0.8211]
[1736127435971,1.15459865,3628.1,3627.5,0.88437535]
[1736127437125,5.15146673,3628.5,3627.6,3.54424076]
[1736127437126,6.30606538,3628.5,3627.6,3.54424076]
[1736127437326,0.7643,3628.4,3627.7,0.06320904]
[1736127437586,2.48057,3628.2,3627.7,0.06320904]
[1736127438530,2.48057,3628.2,3627.5,0.8211]
[1736127438743,2.48057,3628.2,3627.6,0.06311694]
[1736127439779,4.39932865,3628.4,3627.6,0.06311694]
[1736127439959,3.63502865,3628.4,3627.7,0.8211]
[1736127440156,3.63502865,3628.4,3627.8,0.06309072]
[1736127440324,2.48043,3628.4,3627.7,0.8211]
[1736127440536,2.48051,3628.3,3627.8,0.06309072]
[1736127440743,2.48061,3628.2,3627.7,0.8211]
[1736127440981,0.97985219,3628.3,3627.8,0.06309072]
[1736127441202,2.48065,3628.1,3627.7,0.8211]
[1736127441492,2.48077,3627.9,3627.8,0.06309072]
[1736127441693,5.15186673,3627.9,3627.8,0.06309072]
[1736127441993,5.15186673,3627.9,3627.5,1.43390837]
[1736127441994,2.48096,3627.7,3627.5,1.43390837]
[1736127442787,3.26877,3627.6,3627.1,0.7862]
[1736127443178,1.20532858,3627.3,3627.1,0.7862]
[1736127445144,3.26877,3627.6,3627.1,0.7862]
[1736127446003,2.48111,3627.4,3627.1,0.7862]
[1736127446301,2.48111,3627.4,3626.9,1.43355259]
[1736127446740,2.48097,3627.7,3627.0,1.43355259]
[1736127446945,2.48097,3627.7,3627.1,0.8005]
[1736127448850,2.48099,3627.6,3627.1,0.8005]
[1736127449053,2.48099,3627.6,3627.2,0.06353519]
[1736127454236,0.123,3627.8,3627.2,0.06353519]
[1736127454413,2.48111,3627.5,3627.2,0.06353519]
[1736127454609,2.48111,3627.5,3626.8,1.94586202]
[1736127454803,2.48111,3627.5,3626.9,1.49590662]
[1736127455742,2.48111,3627.5,3626.9,0.06357955]
[1736127458355,2.48132,3627.1,3626.9,0.06357955]
[1736127461352,2.48119,3627.3,3626.9,0.06357955]
[1736127461528,2.48119,3627.3,3626.8,0.7919]
[1736127461717,2.48119,3627.3,3626.9,0.06160719]
[1736127461917,2.48119,3627.3,3626.8,0.7919]
[1736127462249,2.48125,3627.2,3626.8,0.7919]
[1736127462544,0.71263677,3627.3,3626.9,0.06160719]
[1736127462747,0.71263677,3627.3,3626.6,1.43306983]
[1736127462748,2.48142,3627.0,3626.6,1.43306983]
[1736127462947,3.0,3627.3,3626.7,0.06163342]
[1736127463150,2.67087905,3627.1,3626.7,0.06163342]
[1736127463325,2.67087905,3626.8,3626.7,0.06163342]
[1736127463654,3.31219,3627.0,3626.7,0.06163342]
[1736127464149,3.31219,3627.0,3626.4,1.43306983]
[1736127464531,2.48139,3627.0,3626.4,1.43306983]
[1736127464724,2.48139,3627.0,3626.5,0.0619504]
[1736127464932,2.48139,3627.0,3626.5,0.40467863]
[1736127465248,2.48126,3627.2,3626.6,0.8048]
[1736127466061,2.48126,3627.2,3626.7,0.06184896]
[1736127467857,2.48109,3627.5,3626.7,0.06184896]
[1736127468043,2.60409,3627.5,3626.8,0.7836]
[1736127469156,2.48112,3627.4,3626.9,0.95473399]
[1736127469359,2.48112,3627.4,3626.9,1.016672]
[1736127470074,2.48112,3627.4,3626.9,0.06193801]
[1736127470879,2.48119,3627.3,3626.9,0.06193801]
[1736127472756,2.48132,3627.1,3626.9,0.06193801]
[1736127473157,0.7571,3627.4,3626.9,0.06193801]
[1736127473485,2.48138,3627.1,3626.9,0.06193801]
[1736127475381,2.48138,3627.1,3626.8,0.7836]
[1736127475770,2.48138,3627.1,3626.4,0.7884]
[1736127475972,2.48138,3627.1,3626.5,0.06189023]
[1736127478374,2.48138,3627.1,3626.5,1.49472459]
[1736127478575,2.48118,3627.4,3626.7,0.808]
[1736127478784,2.48118,3627.4,3626.8,0.06193105]
[1736127478985,2.48118,3627.4,3626.7,0.808]
[1736127479183,2.48118,3627.4,3626.8,0.06193105]
[1736127481349,1.97309865,3627.7,3626.9,0.8251]
[1736127481580,2.60399,3627.6,3627.0,0.88700482]
[1736127482055,2.48099,3627.6,3627.0,0.88700482]
[1736127482692,0.123,3627.8,3627.0,0.88700482]
[1736127482994,0.123,3627.8,3627.1,0.7692]
[1736127482995,2.48091,3627.7,3627.1,0.7692]
[1736127483194,1.15459865,3627.9,3627.2,0.83107859]
[1736127483401,1.15459865,3627.9,3627.2,2.54309859]
[1736127483557,1.15459865,3627.9,3627.4,0.7692]
[1736127483892,1.15459865,3627.9,3627.5,0.06165881]
[1736127484090,4.76624264,3628.2,3627.5,0.06165881]
[1736127484091,3.63516865,3628.2,3627.5,0.06165881]
[1736127485064,2.48057,3628.2,3627.6,0.95513777]
[1736127485593,2.48057,3628.2,3627.7,0.06161755]
[1736127486385,2.48057,3628.2,3627.8,0.06160444]
[1736127486588,2.48057,3628.2,3627.4,0.7692]
[1736127486753,2.48057,3628.2,3627.5,0.2819767]
[1736127487151,2.48057,3628.2,3627.5,1.71473605]
[1736127488398,2.48057,3628.2,3627.6,0.95506257]
[1736127488687,2.48057,3628.2,3627.7,0.06161755]
[1736127489882,2.48057,3628.2,3627.5,1.65309228]
[1736127490085,2.48057,3628.2,3627.8,0.06160444]
[1736127490257,2.48057,3628.2,3627.5,1.65309228]
[1736127490456,2.48057,3628.2,3627.6,0.06163066]
[1736127491194,2.48057,3628.2,3627.6,0.45343589]
[1736127492459,2.48057,3628.2,3627.7,0.7516]
[1736127492654,2.48057,3628.2,3627.7,0.81321755]
[1736127496456,2.48071,3628.0,3627.7,0.81321755]
[1736127498697,2.60355,3628.3,3627.7,0.81321755]
[1736127498876,0.123,3628.3,3627.7,0.81321755]
[1736127499059,0.123,3628.3,3627.7,0.7516]
[1736127499257,0.123,3628.3,3627.8,0.06077261]
[1736127499461,0.123,3628.3,3627.7,0.7516]
[1736127499696,3.80804745,3628.5,3628.0,0.7778]
[1736127499898,4.55233206,3628.5,3628.0,0.7778]
[1736127500092,2.48023,3628.7,3628.0,0.7778]
[1736127500406,2.60323,3628.7,3628.2,0.7778]
[1736127500770,2.48023,3628.7,3628.2,0.7778]
[1736127501882,2.48023,3628.7,3628.3,0.06070707]
[1736127502277,2.48023,3628.7,3628.2,0.7778]
[1736127502706,2.4770133,3628.6,3628.3,0.06070707]
[1736127503003,2.4770133,3628.6,3628.2,0.7778]
[1736127504974,2.48016,3628.8,3628.2,0.7778]
[1736127505674,2.48025,3628.7,3628.2,0.7778]
[1736127505875,2.48025,3628.7,3628.3,0.06070707]
[1736127506416,2.48025,3628.7,3628.2,0.7778]
[1736127506594,2.48025,3628.7,3628.3,0.06070707]
[1736127507098,2.48025,3628.7,3628.2,0.7778]
[1736127507492,2.48025,3628.7,3628.3,0.06070707]
[1736127507814,2.48025,3628.7,3628.2,0.7778]
[1736127508437,2.48044,3628.4,3628.2,0.7778]
[1736127508613,2.48047,3628.4,3627.9,0.7814]
[1736127508813,2.4805,3628.3,3628.0,0.06055102]
[1736127509436,0.123,3628.9,3628.0,0.06055102]
[1736127509643,2.48022,3628.8,3628.1,0.7893]
[1736127510237,2.48025,3628.7,3628.1,0.7893]
[1736127510462,2.48025,3628.7,3628.2,0.06052481]
[1736127510754,2.4803,3628.6,3628.2,0.06052481]
[1736127515040,2.4803,3628.6,3628.1,0.7893]
[1736127515239,2.48042,3628.5,3628.2,0.06052481]
[1736127515540,2.48042,3628.5,3628.1,0.7893]
[1736127515945,2.48042,3628.5,3628.2,0.06052481]
[1736127516146,2.48042,3628.5,3628.1,0.7893]
[1736127518718,0.248042,3628.5,3628.1,0.7893]
[1736127519069,2.4805,3628.3,3627.5,0.8044]
[1736127519249,2.4805,3628.3,3627.6,0.06044316]
[1736127519549,0.7697,3628.7,3627.6,0.8044]
[1736127519726,0.7697,3628.7,3627.7,0.06039999]
[1736127519928,0.7697,3628.7,3627.7,1.35955816]
[1736127520446,2.48043,3628.5,3627.7,1.35955816]
[1736127520652,2.48047,3628.4,3627.7,1.35955816]
[1736127521023,1.20459464,3628.6,3627.7,0.40526941]
[1736127521233,2.48072,3628.0,3627.7,0.06039999]
[1736127527060,2.02179464,3628.2,3627.7,0.06039999]
[1736127527241,2.48084,3627.8,3627.7,0.06039999]
[1736127527443,1.20459464,3627.8,3627.5,1.15396202]
[1736127527750,3.68556464,3627.6,3627.5,1.15396202]
[1736127527921,3.68556464,3627.6,3627.3,0.7805]
[1736127528125,2.48097,3627.6,3627.3,0.7805]
[1736127528453,1.20459464,3627.8,3627.3,0.7805]
[1736127529175,3.68543464,3627.8,3627.3,0.7805]
[1736127529760,2.48092,3627.7,3627.3,0.7805]
[1736127529962,3.08793133,3627.7,3627.3,0.7805]
[1736127530274,2.48103,3627.6,3627.0,1.96686202]
[1736127530462,2.48103,3627.6,3627.1,1.15396202]
[1736127530782,2.48106,3627.5,3627.1,1.15396202]
[1736127531353,2.48106,3627.5,3627.0,0.8129]
[1736127531681,1.20459464,3627.6,3627.0,0.8129]
[1736127531882,2.60392,3627.7,3627.0,1.18293188]
[1736127532179,2.60392,3627.7,3627.1,0.95605557]
[1736127533477,2.60392,3627.7,3627.2,2.38981939]
[1736127533980,1.20459464,3627.6,3627.2,2.38981939]
[1736127534501,1.20459464,3627.6,3627.0,1.18293188]
[1736127535286,1.20459464,3627.6,3627.1,2.3891764]
[1736127536277,1.20459464,3627.6,3627.2,0.95567056]
[1736127537249,1.20459464,3627.6,3627.0,1.18293188]
[1736127538383,1.20459464,3627.6,3627.0,0.8129]
[1736127538582,2.02379464,3627.6,3627.1,0.95552332]
[1736127538975,1.20459464,3627.6,3627.2,0.06112684]
[1736127539876,1.20459464,3627.6,3627.0,0.8129]
[1736127540178,1.20459464,3627.6,3627.1,0.06113996]
[1736127542572,1.20459464,3627.6,3627.1,0.40726866]
[1736127542748,0.123,3627.7,3627.1,0.40726866]
[1736127542952,0.123,3627.7,3627.2,0.7832]
[1736127543356,0.123,3627.7,3627.3,0.06118388]
[1736127543756,0.123,3627.7,3627.2,0.7832]
[1736127543998,1.32759464,3627.8,3627.4,0.06117077]
[1736127544158,1.32759464,3627.8,3627.3,0.06118388]
[1736127544358,1.32759464,3627.8,3627.5,0.06115766]
[1736127544586,0.123,3627.8,3627.4,0.06117077]
[1736127544752,0.123,3627.8,3627.6,0.06114455]
[1736127544958,0.123,3627.8,3627.5,0.85495766]
[1736127545185,0.123,3627.8,3627.7,0.06113143]
[1736127545485,1.32759464,3628.0,3627.6,0.06114455]
[1736127545689,1.32759464,3628.0,3627.7,0.06113143]
[1736127545900,1.20459464,3628.1,3627.5,0.7938]
[1736127546110,1.32759464,3628.1,3627.5,1.04213464]
[1736127546405,1.32759464,3628.1,3627.6,0.06114455]
[1736127549407,3.80823464,3628.1,3627.6,0.06114455]
[1736127551610,1.32759464,3628.1,3627.6,0.06114455]
[1736127551912,2.48071,3628.0,3627.6,0.06114455]
[1736127555711,2.48056,3628.2,3627.6,0.06114455]
[1736127555913,3.80815464,3628.2,3627.6,0.06114455]
[1736127556513,3.80815464,3628.2,3627.7,0.78]
[1736127556714,1.15459865,3628.3,3627.7,0.78]
[1736127557052,1.15459865,3628.3,3627.9,0.78]
[1736127557053,0.123,3628.3,3627.9,0.78]
[1736127557881,2.6035,3628.3,3627.9,0.78]
[1736127558610,2.6035,3628.3,3628.0,0.06091173]
[1736127559148,0.123,3628.3,3628.0,0.06091173]
[1736127559713,0.123,3628.3,3627.9,0.78]
[1736127559898,1.20459464,3628.4,3627.9,0.78]
[1736127560100,3.80802464,3628.4,3627.9,0.78]
[1736127560958,3.80802464,3628.4,3628.0,0.06091173]
[1736127561738,0.123,3628.4,3628.0,0.28828966]
[1736127561961,3.75789865,3628.6,3628.0,0.28828966]
[1736127562166,3.75789865,3628.6,3628.1,0.818]
[1736127562512,1.20459464,3628.5,3628.1,0.818]
[1736127562826,1.20459464,3628.5,3628.1,0.87874832]
[1736127567251,3.68496464,3628.5,3628.1,0.87874832]
[1736127575670,2.48044,3628.4,3628.1,0.87874832]
[1736127577469,1.20459464,3628.5,3628.1,0.87874832]
[1736127577769,2.48039,3628.5,3628.1,0.87874832]
[1736127579059,0.123,3628.6,3628.1,0.87874832]
[1736127579060,0.123,3628.7,3628.1,1.10983746]
[1736127579461,1.15459865,3628.9,3628.2,0.8003]
[1736127579673,0.123,3628.8,3628.2,0.8003]
[1736127579837,0.123,3628.8,3628.4,0.8003]
[1736127580039,1.15459865,3628.9,3628.4,0.8003]
[1736127580273,1.15459865,3628.9,3628.5,0.06038028]
[1736127580975,2.60305,3629.0,3628.5,0.06038028]
[1736127581469,2.47988,3629.2,3628.5,0.06038028]
[1736127581674,3.63435865,3629.4,3628.6,0.8003]
[1736127581875,1.27759865,3629.4,3628.6,0.8003]
[1736127582169,1.27759865,3629.4,3628.7,0.86040867]
[1736127583699,3.75734865,3629.4,3628.7,0.86040867]
[1736127584068,2.60275,3629.4,3628.8,0.95355213]
[1736127584280,2.60275,3629.4,3628.9,0.43990763]
[1736127584455,2.60275,3629.4,3628.9,0.49999009]
[1736127585595,2.60275,3629.4,3628.9,0.06008246]
[1736127585971,2.60275,3629.4,3628.7,0.8003]
[1736127586172,2.60275,3629.4,3629.0,0.06006936]
[1736127586372,2.60275,3629.4,3628.7,0.8003]
[1736127586586,2.60275,3629.4,3629.1,0.06005626]
[1736127586785,2.60275,3629.4,3628.7,0.8003]
[1736127587135,2.47981,3629.3,3629.2,0.05958743]
[1736127587272,2.47999,3629.1,3628.7,0.8003]
[1736127587659,2.47999,3629.1,3628.8,0.05963983]
[1736127587886,1.20459464,3629.0,3628.8,0.05963983]
[1736127588892,1.20459464,3629.0,3628.7,0.8003]
[1736127589259,1.20459464,3629.0,3628.8,0.05963983]
[1736127589591,1.20459464,3629.0,3628.7,0.8003]
[1736127590001,2.47999,3629.1,3628.8,0.05963983]
[1736127590598,2.47999,3629.1,3628.7,0.8003]
[1736127590974,2.47984,3629.3,3628.8,0.05963983]
[1736127591306,3.68443464,3629.3,3628.7,0.8003]
[1736127591493,3.68443464,3629.3,3628.8,0.05963983]
[1736127591867,3.68443464,3629.3,3628.7,0.8003]
[1736127592116,3.68443464,3629.3,3628.8,0.05963983]
[1736127597214,1.20459464,3629.1,3628.8,0.05963983]
[1736127597915,3.68443464,3629.3,3628.8,0.05963983]
[1736127612548,2.47984,3629.3,3628.8,0.05963983]
[1736127613048,2.47984,3629.3,3628.8,0.28874916]
[1736127614223,2.47984,3629.3,3628.8,0.05963983]
[1736127618662,2.60284,3629.3,3628.8,0.05963983]
[1736127623363,2.47988,3629.2,3628.8,0.05963983]
[1736127624575,2.48006,3629.0,3628.9,0.95617521]
[1736127624783,2.48006,3629.0,3628.9,1.01565171]
[1736127625987,2.48006,3629.0,3628.9,0.0594765]
[1736127626285,2.48006,3629.0,3628.7,0.8003]
[1736127626609,2.48015,3628.8,3628.6,1.15396202]
[1736127626784,3.68481464,3628.7,3628.6,1.15396202]
[1736127628781,3.68481464,3628.7,3628.1,1.15396202]
[1736127628782,2.02889464,3628.7,3628.1,1.15396202]
[1736127628960,3.68515464,3628.2,3628.1,1.15396202]
[1736127629561,3.68515464,3628.2,3627.9,1.15396202]
[1736127630867,3.68515464,3628.2,3627.7,4.46297587]
[1736127630868,1.20459464,3628.4,3627.7,0.8162]
[1736127631077,2.48053,3628.3,3627.7,0.8162]
[1736127635386,1.20459464,3628.4,3627.7,0.8162]
[1736127636587,3.63480865,3628.8,3627.8,0.7658]
[1736127636889,1.32759464,3628.7,3627.8,0.7658]
[1736127637499,1.32759464,3628.7,3627.9,0.7658]
[1736127638566,1.20459464,3628.7,3627.9,0.7658]
[1736127640769,1.20459464,3628.7,3628.0,0.95441233]
[1736127641954,1.20459464,3628.7,3627.9,0.7658]
[1736127642159,1.20459464,3628.7,3628.0,0.61734802]
[1736127642855,1.20459464,3628.7,3628.1,0.7676]
[1736127643994,1.20459464,3628.7,3628.2,0.08862116]
[1736127650571,3.68484464,3628.7,3628.2,0.08862116]
[1736127653504,2.48025,3628.7,3628.2,0.08862116]
[1736127653799,2.48025,3628.7,3628.3,0.8116]
[1736127654007,2.48025,3628.7,3628.4,0.08855332]
[1736127654300,2.48025,3628.7,3628.3,0.8116]
[1736127654676,2.48025,3628.7,3628.4,0.08855332]
[1736127654872,1.15459865,3629.0,3628.5,0.7892]
[1736127655078,1.27759865,3629.1,3628.5,0.7892]
[1736127655277,1.27759865,3629.1,3628.7,0.7892]
[1736127655691,1.27759865,3629.1,3628.8,0.08844268]
[1736127656196,0.123,3629.1,3628.7,0.7892]
[1736127656401,0.123,3629.1,3628.8,0.08844268]
[1736127657168,3.68442464,3629.3,3628.8,0.08844268]
[1736127657369,0.123,3629.2,3628.8,0.08844268]
[1736127657993,2.47969,3629.5,3628.8,0.08844268]
[1736127658163,2.60269,3629.5,3628.9,0.7908]
[1736127658368,2.60269,3629.5,3629.0,0.08817955]
[1736127659181,3.80728464,3629.5,3629.0,0.08817955]
[1736127659983,3.80728464,3629.5,3629.0,0.08730548]
[1736127660506,1.15459865,3629.8,3629.0,0.08730548]
[1736127660710,0.123,3629.6,3629.1,0.7908]
[1736127660899,0.123,3629.6,3629.1,0.99907001]
[1736127661207,4.83867329,3629.8,3629.2,0.0872916]
[1736127661384,2.47955,3629.7,3629.1,0.7908]
[1736127661586,3.63414865,3629.7,3629.2,0.0872916]
[1736127661780,1.20459464,3629.4,3629.2,0.0872916]
[1736127661985,1.20459464,3629.4,3628.6,0.7784]
[1736127662287,3.68458464,3629.1,3628.7,0.08388324]
[1736127662680,2.47999,3629.1,3628.7,0.08388324]
[1736127663413,1.20459464,3629.3,3628.7,0.08388324]
[1736127663722,1.20459464,3629.3,3628.8,0.7784]
[1736127663723,0.123,3629.3,3628.8,0.7784]
[1736127664011,2.48219329,3629.5,3628.9,0.08111848]
[1736127664180,1.27759865,3629.5,3629.0,0.8124]
[1736127664372,2.48219329,3629.5,3629.0,0.8124]
[1736127664619,3.14979907,3629.5,3629.0,0.8124]
[1736127664979,1.94520443,3629.5,3629.0,0.8124]
[1736127665587,0.79060578,3629.5,3629.0,0.8124]
[1736127665803,2.47992,3629.2,3629.1,0.08104073]
[1736127665972,2.47992,3629.2,3628.6,0.8059]
[1736127666178,2.47992,3629.2,3628.7,0.08109626]
[1736127668309,2.47999,3629.1,3628.7,0.08109626]
[1736127668515,0.51477645,3629.0,3628.7,0.08109626]
[1736127668718,0.51477645,3629.0,3628.4,0.763]
[1736127668903,0.51477645,3629.0,3628.8,0.08108238]
[1736127669106,0.51477645,3629.0,3628.4,0.763]
[1736127669305,3.74849645,3629.0,3628.4,0.763]
[1736127669505,0.37484965,3628.9,3628.5,0.08112403]
[1736127670299,2.99479645,3629.0,3628.5,0.08112403]
[1736127676828,0.51477645,3629.0,3628.6,0.7711]
[1736127676994,3.63447865,3629.3,3628.7,0.08101771]
[1736127678029,3.63116204,3629.3,3628.7,0.08101771]
[1736127678339,2.47656339,3629.3,3628.7,0.08101771]
[1736127678496,3.10036504,3629.3,3628.7,0.08101771]
[1736127681534,2.47656339,3629.3,3628.7,0.08101771]
[1736127686434,1.27659865,3629.4,3628.7,0.08101771]
[1736127686635,3.75634865,3629.4,3628.7,0.08101771]
[1736127686934,3.75634865,3629.4,3628.8,0.8282]
[1736127687439,3.75634865,3629.4,3628.9,0.08098995]
[1736127687635,3.75634865,3629.4,3628.8,0.8282]
[1736127687815,2.60175,3629.4,3628.9,0.08086998]
[1736127688010,2.60175,3629.4,3628.8,0.8282]
[1736127688310,2.60175,3629.4,3628.9,0.08078665]
[1736127688724,2.60175,3629.4,3628.8,0.8282]
[1736127689238,2.60175,3629.4,3628.9,0.08078665]
[1736127689538,2.60175,3629.4,3628.8,0.8282]
[1736127689716,2.60175,3629.4,3629.0,0.08077276]
[1736127689904,3.64626554,3629.4,3628.9,0.08078665]
[1736127690254,3.64626554,3629.4,3629.0,0.08077276]
[1736127690462,2.47983,3629.3,3629.0,0.08077276]
[1736127690607,1.16651554,3629.4,3628.8,0.8282]
[1736127690808,1.16651554,3629.4,3628.9,0.08078665]
[1736127691008,1.93351895,3629.3,3628.7,0.8054]
[1736127691245,1.93351895,3629.3,3628.8,0.08080053]
[1736127691602,1.9584523,3629.1,3628.4,0.8054]
[1736127691834,2.4801,3628.9,3628.5,0.08084219]
[1736127695223,1.2039523,3628.7,3628.5,0.08084219]
[1736127695456,3.24209,3628.6,3628.5,0.08084219]
[1736127695727,2.4804,3628.5,3628.2,1.15396202]
[1736127695965,1.2039523,3628.4,3628.2,1.15396202]
[1736127696177,1.2039523,3628.4,3627.8,1.94176202]
[1736127696947,2.4804,3628.5,3627.8,1.94176202]
[1736127697246,1.15459865,3628.7,3628.0,0.7929]
[1736127697769,2.48029,3628.6,3628.0,0.7929]
[1736127697969,1.15459865,3628.7,3627.9,0.95420627]
[1736127698172,2.48043,3628.4,3627.9,0.95420627]
[1736127698488,2.48043,3628.4,3627.7,1.94686202]
[1736127699603,2.48043,3628.4,3627.8,2.38531213]
[1736127700651,2.48043,3628.4,3627.8,1.43118728]
[1736127702513,0.8227,3628.5,3627.8,1.43118728]
[1736127703353,2.48044,3628.4,3627.8,1.43118728]
[1736127703712,1.02042987,3628.5,3627.7,0.7929]
[1736127704012,2.48053,3628.3,3627.9,0.07917855]
[1736127704154,2.48053,3628.3,3627.8,0.07919244]
[1736127704355,2.48053,3628.3,3628.0,0.07916465]
[1736127704555,2.48053,3628.3,3627.7,0.7929]
[1736127704556,3.09753877,3628.3,3627.9,0.07917855]
[1736127704749,3.09753877,3628.3,3627.7,0.7929]
[1736127704750,3.09753877,3628.3,3628.1,0.07915076]
[1736127704946,3.09753877,3628.3,3628.0,0.07916465]
[1736127705150,3.09753877,3628.3,3627.7,0.7929]
[1736127705404,3.09753877,3628.3,3628.1,0.07915076]
[1736127705570,0.41179686,3628.2,3627.7,0.7929]
[1736127705773,2.48053,3628.3,3627.7,0.7929]
[1736127706080,2.48053,3628.3,3627.8,0.07919244]
[1736127706453,2.48053,3628.3,3627.7,0.7929]
[1736127706656,2.48053,3628.3,3627.8,0.07919244]
[1736127706849,2.48053,3628.3,3627.7,0.7929]
[1736127707049,2.60253,3628.3,3627.8,0.07919244]
[1736127707267,2.60253,3628.3,3627.7,0.7929]
[1736127707504,2.60253,3628.3,3627.8,0.07927246]
[1736127707794,2.60253,3628.3,3627.7,0.7929]
[1736127708242,2.60253,3628.3,3627.8,0.07934749]
[1736127708447,2.60253,3628.3,3627.7,0.7929]
[1736127708844,2.60253,3628.3,3627.8,0.07934749]
[1736127709027,2.60253,3628.3,3627.7,0.7929]
[1736127709211,2.60253,3628.3,3627.8,0.07934749]
[1736127709657,2.60253,3628.3,3627.7,0.7929]
[1736127709856,2.60253,3628.3,3627.8,0.07934749]
[1736127709857,0.122,3628.3,3627.8,0.07934749]
[1736127710168,0.122,3628.3,3627.7,0.7929]
[1736127710330,0.122,3628.3,3627.9,0.0793336]
[1736127710535,0.122,3628.3,3627.8,0.07934749]
[1736127710867,0.122,3628.3,3627.9,0.0793336]
[1736127711179,0.122,3628.3,3627.7,0.7929]
[1736127711607,0.122,3628.3,3627.8,0.07934749]
[1736127712127,0.122,3628.3,3627.9,0.0793336]
[1736127712480,0.122,3628.3,3627.7,0.7929]
[1736127712767,0.122,3628.3,3627.8,0.07934749]
[1736127713116,0.122,3628.3,3627.7,0.7929]
[1736127713313,0.122,3628.3,3627.9,0.0793336]
[1736127713513,0.122,3628.3,3627.7,0.7929]
[1736127713514,0.122,3628.3,3627.8,0.07934749]
[1736127713765,0.122,3628.3,3628.0,0.07931971]
[1736127713912,0.122,3628.3,3627.9,0.0793336]
[1736127714113,0.122,3628.3,3628.1,0.07930582]
[1736127714330,0.122,3628.3,3628.0,0.07931971]
[1736127714564,0.122,3628.3,3627.7,0.7929]
[1736127714775,0.122,3628.3,3628.1,0.07930582]
[1736127715112,0.464513,3628.3,3627.7,0.7929]
[1736127715266,0.122,3628.3,3628.2,0.07929193]
[1736127715472,0.122,3628.3,3627.7,0.7929]
[1736127715975,0.122,3628.3,3627.8,0.07934749]
[1736127716361,0.122,3628.3,3627.7,0.7929]
[1736127716876,0.122,3628.3,3627.8,0.07934749]
[1736127717044,0.122,3628.3,3627.7,0.7929]
[1736127717377,0.122,3628.3,3627.8,0.07934749]
[1736127717675,0.122,3628.3,3627.9,0.0793336]
[1736127718043,0.122,3628.3,3627.7,0.7929]
[1736127718271,0.122,3628.3,3627.8,0.07934749]
[1736127718677,0.122,3628.3,3627.9,0.0793336]
[1736127718887,0.122,3628.3,3627.7,0.7929]
[1736127719107,0.122,3628.5,3627.8,0.91034749]
[1736127720782,0.122,3628.6,3628.0,0.831]
[1736127720985,1.15459865,3628.8,3628.4,0.831]
[1736127721141,1.15459865,3628.8,3628.5,1.20448227]
[1736127721336,1.15459865,3628.8,3628.5,1.28353247]
[1736127721543,1.15459865,3628.8,3628.5,0.0790502]
[1736127722162,1.27659865,3629.2,3628.5,0.0790502]
[1736127723377,2.48009,3628.9,3628.5,0.0790502]
[1736127723601,2.48023,3628.7,3628.5,0.0790502]
[1736127723896,2.48009,3628.9,3628.6,0.07884131]
[1736127724096,0.7824,3629.0,3628.2,1.4295184]
[1736127724251,0.7824,3629.0,3628.3,0.07894797]
[1736127724591,0.7824,3629.0,3628.4,0.8022]
[1736127725100,0.7824,3629.0,3628.5,0.0789202]
[1736127725253,1.82816954,3629.0,3628.5,0.0789202]
[1736127730909,0.7824,3629.0,3628.5,0.0789202]
[1736127733716,4.39911865,3629.3,3628.5,1.28340247]
[1736127733948,0.122,3629.1,3628.5,1.28340247]
[1736127735215,1.15459865,3629.4,3628.7,1.20448227]
[1736127735379,0.122,3629.3,3628.9,1.20448227]
[1736127735577,1.15459865,3629.4,3629.1,1.20448227]
[1736127735811,1.15459865,3629.4,3629.3,2.01908227]
[1736127736305,1.15459865,3629.5,3629.3,2.09479371]
[1736127737084,1.15459865,3629.5,3629.3,0.89031144]
[1736127737505,0.122,3629.7,3629.3,0.89031144]
[1736127738641,0.122,3629.9,3629.3,0.89031144]
[1736127743553,0.8867,3630.0,3629.3,0.89031144]
[1736127743711,0.8867,3630.0,3629.3,1.22734458]
[1736127744145,0.7647,3630.0,3629.3,1.22734458]
[1736127744460,1.15734865,3630.4,3629.8,2.66696012]
[1736127744745,0.00275,3630.4,3629.9,0.84791216]
[1736127744951,0.00275,3630.4,3630.0,0.59943123]
[1736127745150,0.00275,3630.4,3630.0,0.67392951]
[1736127746248,0.00275,3630.4,3630.1,0.7602]
[1736127746753,0.00275,3630.4,3630.2,0.07447053]
[1736127753119,0.00275,3630.4,3630.3,0.7906]
[1736127753279,0.00275,3630.4,3630.3,1.01089724]
[1736127755018,0.00275,3630.4,3630.3,2.88725736]
[1736127755320,0.00275,3630.4,3630.3,3.65735736]
[1736127767554,2.47845,3631.3,3630.3,3.65735736]
[1736127769283,2.47845,3631.3,3630.3,2.88725736]
[1736127769442,2.47845,3631.3,3630.4,1.31974374]